fUST/lending_fUST_20250826
["ID","MTS","AMOUNT","RATE_DAILY","PERIOD"]
[381455597,1756218395826,-966.58839703,0.00044657,120]
[381455598,1756218395877,-763.49097709,0.00044657,120]
[381455599,1756218395929,-2701.97839844,0.00044657,120]
[381455600,1756218395981,-1038.67641231,0.00044657,120]
[381455601,1756218396033,-1152.92788815,0.00044657,120]
[381455602,1756218396086,-587.48733648,0.00044657,120]
[381455603,1756218396137,-1061.04707309,0.00044657,120]
[381455604,1756218396189,-887.34517866,0.00044657,120]
[381455605,1756218396238,-738.82716062,0.00044657,120]
[381455606,1756218396286,-1551.43896511,0.00044657,120]
[381455607,1756218396333,-1409.35367422,0.00044657,120]
[381455608,1756218396382,-1240.55561374,0.00044657,120]
[381455609,1756218396434,-800.3783461,0.00044657,120]
[381455610,1756218396484,-559.9875912,0.00044657,120]
[381455611,1756218396535,-16306.01144548,0.00044657,120]
[381455612,1756218396588,-654.34,0.00044657,120]
[381455613,1756218396637,-1161.86428987,0.00044657,120]
[381455614,1756218396686,-489.60524268,0.00044657,120]
[381455615,1756218396736,-2257.05672077,0.00044657,120]
[381455616,1756218396786,-553.87727731,0.00044657,120]
[381455617,1756218396835,-605.51818378,0.00044657,120]
[381455618,1756218396884,-1741.00849339,0.00044657,120]
[381455619,1756218396933,-579.58908242,0.00044657,120]
[381455620,1756218396983,-559.69086596,0.00044657,120]
[381455621,1756218397031,-3090.9860086,0.00044657,120]
[381455622,1756218397464,-606.51654369,0.00044657,120]
[381455623,1756218397533,-1543.48565972,0.00044657,120]
[381455624,1756218397582,-5033.12748245,0.00044657,120]
[381455625,1756218397630,-544.58316544,0.00044657,120]
[381455626,1756218397680,-1615.02855203,0.00044657,120]
[381455627,1756218397729,-1820.83487559,0.00044657,120]
[381455628,1756218397781,-1931.66258932,0.00044657,120]
[381455629,1756218397829,-1230.20083661,0.00044657,120]
[381455630,1756218397878,-553.14291231,0.00044657,120]
[381455631,1756218397927,-3306.45537996,0.00044657,120]
[381455632,1756218397974,-1560.44465065,0.00044657,120]
[381455633,1756218398022,-1665.094324,0.00044657,120]
[381455634,1756218398071,-1727.34377488,0.00044657,120]
[381455635,1756218398120,-1603.81613756,0.00044657,120]
[381455636,1756218398172,-1328.80259321,0.00044657,120]
[381455637,1756218398231,-2303.04245151,0.00044657,120]
[381455638,1756218398284,-389.52612469,0.00044657,120]
[381455639,1756218398333,-623.39274444,0.00044657,120]
[381455640,1756218398381,-3530.20099212,0.00044657,120]
[381455641,1756218398437,-654.34,0.00044931,120]
[381455642,1756218398486,-1000.0,0.00044999,120]
[381455643,1756218398536,-200.0,0.00045,120]
[381455644,1756218398586,-200.0,0.00045,120]
[381455645,1756218398635,-1500.0,0.00045,120]
[381455646,1756218398687,-654.34,0.00045205,120]
[381455647,1756218398738,-800.0,0.00045479,60]
[381455648,1756218398790,-654.34,0.00045479,120]
[381455649,1756218398840,-205.17113,0.000456,120]
[381455650,1756218398890,-200.0,0.000456,120]
[381455651,1756218398942,-654.34,0.00045753,120]
[381455652,1756218398997,-720.0,0.00045976,60]
[381455653,1756218399047,-150.50328648,0.00046,120]
[381455654,1756218399096,-300.0,0.00046,120]
[381455655,1756218399147,-654.34,0.00046027,120]
[381455656,1756218399199,-654.34,0.00046301,120]
[381455657,1756218399251,-2544.10308494,0.0004648,120]
[381455658,1756218399304,-800.0,0.00046575,60]
[381455659,1756218399357,-1000.0,0.00046575,120]
[381455660,1756218399412,-654.34,0.00046575,120]
[381455661,1756218399469,-1061.8017597,0.00046602,120]
[381455662,1756218399526,-654.34,0.00046849,120]
[381455663,1756218399579,-10329.03,0.000469,120]
[381455664,1756218399631,-654.34,0.00047123,120]
[381455665,1756218399683,-654.53025487,0.00047397,120]
[381455666,1756218399734,-800.0,0.00047671,60]
[381455667,1756218399784,-205.17113,0.000479,120]
[381455668,1756218399835,-200.0,0.000479,120]
[381455669,1756218399885,-1000.0,0.00047999,120]
[381455670,1756218399935,-894.06260108,0.00048,60]
[381455671,1756218399986,-124221.37527756,0.00048,120]
[381455672,1756218400036,-150.0,0.00048,120]
[381455673,1756218400086,-113929.0132,0.00048,120]
[381455674,1756218400344,-700.0,0.00048,120]
[381455675,1756218400398,-500.0,0.00048,120]
[381455676,1756218400452,-157.0,0.00048,120]
[381455677,1756218400503,-311.1681,0.000481,120]
[381455678,1756218400553,-276.3959,0.000483,120]
[381455679,1756218400602,-47077.5,0.000486,120]
[381455680,1756218400651,-800.0,0.00048767,60]
[381455681,1756218400700,-5410.12278991,0.000488,120]
[381455682,1756218400750,-1000.0,0.00049,120]
[381455683,1756218400799,-9662.88062523,0.00049,60]
[381455684,1756218400848,-500.0,0.00049,120]
[381455685,1756218400897,-763.0386971,0.00049,90]
[381455686,1756218400948,-1000.0,0.00049,120]
[381455687,1756218400998,-151.0,0.00049015,60]
[381455688,1756218401305,2101.19235744,0.00044657,120]
[381455689,1756218401361,874.64589359,0.00044383,120]
[381455690,1756218402738,7298.11,0.00043835,120]
[381455691,1756218402865,841.36,0.00043835,120]
[381455692,1756218402926,7298.11,0.00044109,120]
[381455693,1756218402987,841.36,0.00044109,120]
[381455694,1756218403054,688.92,0.00043835,120]
[381455695,1756218403112,841.36,0.00044383,120]
[381455696,1756218403170,841.42551415,0.00044657,120]
[381455697,1756218403241,7298.11,0.00044383,120]
[381455698,1756218403295,1302.26,0.00043835,120]
[381455699,1756218403352,688.92,0.00044109,120]
[381455700,1756218403426,1302.26,0.00044109,120]
[381455701,1756218403573,7298.1373636,0.00044657,120]
[381455702,1756218403632,688.92,0.00044383,120]
[381455703,1756218403769,1302.26,0.00044383,120]
[381455704,1756218403931,688.9519818,0.00044657,120]
[381455705,1756218404131,1302.41022997,0.00044657,120]
[381455706,1756218404188,5677.08,0.00043835,120]
[381455707,1756218404340,5677.08,0.00044109,120]
[381455708,1756218404510,5677.08,0.00044383,120]
[381455709,1756218404818,5677.30750783,0.00044657,120]
[381455710,1756218405472,915.83,0.00043835,120]
[381455711,1756218440991,202.21703906,0.000199,2]
[381455712,1756218441128,202.21703906,0.00024907,2]
[381455713,1756218517826,22607.86903134,0.00025,2]
[381455714,1756218519548,246.356961,0.00027889,2]
[381455715,1756218526804,1013.82942406,0.00025,10]
[381455716,1756218567895,3097.53635973,0.00028,2]
[381455717,1756218615954,202.21703906,0.000199,2]
[381455718,1756218616047,166.161955,0.00013699,2]
[381455719,1756218616108,202.21703906,0.00026159,4]
[381455763,1756218631934,-1604.77366082,0.00028677,2]
[381455765,1756218631944,-300.0,0.00028701,2]
[381455767,1756218631954,-151.80273,0.00028777,20]
[381455769,1756218631963,-170.097317,0.00028802,2]
[381455770,1756218631973,-201.86322571,0.00029275,20]
[381455775,1756218632024,-98.13677429,0.00029275,20]
[381455777,1756218632033,-300.0,0.00029275,20]
[381455778,1756218632043,-300.0,0.00029275,20]
[381455780,1756218632052,-149.86322071,0.00029275,20]
[381455862,1756218637799,-150.13677929,0.00029275,20]
[381455863,1756218637809,-300.0,0.00029275,20]
[381455864,1756218637818,-300.0,0.00029275,20]
[381455865,1756218637828,-300.0,0.00029275,20]
[381455866,1756218637837,-300.0,0.00029275,20]
[381455867,1756218637847,-300.0,0.00029275,20]
[381455868,1756218637860,-300.0,0.00029275,20]
[381455869,1756218637870,-300.0,0.00029275,20]
[381455870,1756218637879,-300.0,0.00029275,20]
[381455871,1756218637889,-300.0,0.00029275,20]
[381455872,1756218637898,-300.0,0.00029275,20]
[381455873,1756218637908,-300.0,0.00029275,20]
[381455874,1756218637917,-151.80273,0.00029402,20]
[381455875,1756218637927,-600.0,0.00029859,20]
[381455876,1756218637936,-1604.77366081,0.00030939,2]
[381455878,1756218637945,-160.0,0.00030959,2]
[381455880,1756218637955,-420.0,0.00030975,2]
[381455881,1756218637964,-181.146,0.00031327,29]
[381455882,1756218637973,-2660.43498468,0.00031333,2]
[381455883,1756218637983,-638.8465052,0.00031337,2]
[381455884,1756218637992,-1280.0,0.00031406,3]
[381455885,1756218638001,-460.64,0.00031407,3]
[381455886,1756218638010,-500.0,0.00031415,2]
[381455887,1756218638020,-230.98518225,0.00031415,2]
[381455888,1756218638029,-291.04884443,0.00031415,2]
[381455889,1756218638039,-500.0,0.00031415,2]
[381455890,1756218638049,-262.28847549,0.00031415,2]
[381455891,1756218638058,-279.65132433,0.00031415,2]
[381455892,1756218638068,-500.0,0.00031415,2]
[381455894,1756218638077,-500.0,0.00031415,2]
[381455896,1756218638087,-183.87719648,0.00031415,2]
[381455897,1756218638096,-500.0,0.00031415,2]
[381455899,1756218638108,-184.94277576,0.00031415,2]
[381455900,1756218638118,-500.0,0.00031415,2]
[381455902,1756218638127,-500.0,0.00031415,2]
[381455904,1756218638137,-500.0,0.00031415,2]
[381455906,1756218638147,-500.0,0.00031415,2]
[381455908,1756218638156,-152.85588954,0.00031415,2]
[381455910,1756218638166,-500.0,0.00031415,2]
[381455912,1756218638175,-500.0,0.00031415,2]
[381455914,1756218638185,-401.58884181,0.00031415,2]
[381455916,1756218638194,-500.0,0.00031415,2]
[381455918,1756218638203,-500.0,0.00031415,2]
[381455920,1756218638213,-500.0,0.00031415,2]
[381455922,1756218638222,-500.0,0.00031415,2]
[381455924,1756218638231,-500.0,0.00031415,2]
[381455926,1756218638240,-199.60935923,0.00031415,2]
[381455928,1756218638249,-500.0,0.00031415,2]
[381455930,1756218638259,-500.0,0.00031415,2]
[381455932,1756218638268,-500.0,0.00031415,2]
[381455934,1756218638277,-625.53,0.00031416,10]
[381455936,1756218638286,-23144.97728383,0.00031416,2]
[381455938,1756218638303,-30542.09973317,0.00031416,2]
[381455940,1756218638312,-543.04393816,0.00031426,2]
[381455942,1756218638322,-543.04393816,0.00031426,2]
[381455944,1756218638333,-543.04393816,0.00031426,2]
[381455946,1756218638343,-543.04393816,0.00031426,2]
[381455948,1756218638353,-569.01331191,0.00031426,2]
[381455950,1756218638365,-543.04393816,0.00031426,2]
[381455952,1756218638375,-543.04393816,0.00031426,2]
[381455954,1756218638385,-543.04393816,0.00031426,2]
[381455956,1756218638395,-543.04393816,0.00031426,2]
[381455958,1756218638405,-543.04393816,0.00031426,2]
[381455960,1756218638414,-543.04393816,0.00031426,2]
[381455962,1756218638424,-543.04393816,0.00031426,2]
[381455964,1756218638434,-543.04393816,0.00031426,2]
[381455966,1756218638445,-543.04393816,0.00031426,2]
[381455968,1756218638455,-543.04393816,0.00031426,2]
[381455971,1756218638464,-543.04393816,0.00031426,2]
[381455973,1756218638474,-543.04393816,0.00031426,2]
[381455974,1756218638484,-543.04393816,0.00031426,2]
[381455977,1756218638494,-543.04393816,0.00031426,2]
[381455978,1756218638504,-543.04393816,0.00031426,2]
[381455979,1756218638513,-560.76014554,0.00031426,2]
[381455982,1756218638523,-560.76014554,0.00031426,2]
[381455983,1756218638533,-560.76014554,0.00031426,2]
[381455984,1756218638542,-560.76014554,0.00031426,2]
[381455985,1756218638554,-560.76014554,0.00031426,2]
[381455986,1756218638568,-560.76014554,0.00031426,2]
[381455987,1756218638578,-560.76014554,0.00031426,2]
[381455988,1756218638588,-560.76014554,0.00031426,2]
[381455989,1756218638599,-560.76014554,0.00031426,2]
[381455990,1756218638610,-2813.82082002,0.00031427,2]
[381456064,1756218640023,-98213.48142604,0.00031427,2]
[381456066,1756218640035,-46463.92586701,0.00031427,2]
[381456689,1756218646257,-533.47592412,0.00031415,2]
[381456692,1756218646267,-521.27,0.00031417,10]
[381456694,1756218646276,-6378.58834168,0.00031427,2]
[381456696,1756218646287,-5252.16904197,0.00031427,2]
[381458130,1756218674384,551.0,0.0002,7]
[381458131,1756218800492,-250.0,0.00031071,2]
[381458132,1756218800517,-400.0,0.00031316,2]
[381458133,1756218800538,-32300.0,0.00031317,2]
[381458134,1756218805038,202.21703906,0.000199,2]
[381458135,1756218807521,-196.57057927,0.00028245,9]
[381458136,1756218929743,-5.64645979,0.00028245,9]
[381458137,1756218937807,-425.89767014,0.00031217,2]
[381458138,1756218937829,-1095.45587007,0.00031217,2]
[381458142,1756218988060,202.21703906,0.000199,2]
[381458149,1756219143115,4986.02,0.00032006,60]
[381458150,1756219162014,202.21703906,0.000199,2]
[381458151,1756219308028,500.0,0.00023,2]
[381458152,1756219338663,202.21703906,0.000199,2]
[381458153,1756219511523,202.21703906,0.000199,2]
[381458154,1756219643130,-693.46988254,0.00028526,2]
[381458155,1756219643151,-2771.10565063,0.00028526,2]
[381458156,1756219643171,-206.54496082,0.00029127,2]
[381458157,1756219643192,-246.356961,0.00029751,2]
[381458158,1756219643213,-405.0,0.00030027,2]
[381458159,1756219643234,-497.69501916,0.00030028,2]
[381458160,1756219643256,-1990.78007664,0.00030028,2]
[381458161,1756219643276,-4479.25517244,0.00030028,2]
[381458162,1756219643296,-7955.15718625,0.00030028,2]
[381458163,1756219643316,-1200.0,0.000301,2]
[381458164,1756219643337,-171.0,0.00031,120]
[381458165,1756219643357,-1300.0,0.000311,3]
[381458166,1756219643379,-1203.58024566,0.00031206,2]
[381458167,1756219643400,-2104.80147757,0.00031206,2]
[381458168,1756219643420,-283.93178008,0.00031216,2]
[381458169,1756219643441,-434.39,0.00031296,10]
[381458170,1756219643461,-188.84548436,0.00031304,2]
[381458171,1756219643482,-500.0,0.00031304,2]
[381458172,1756219643504,-291.24557572,0.00031304,2]
[381458173,1756219643524,-500.0,0.00031304,2]
[381458174,1756219643546,-337.05288046,0.00031304,2]
[381458175,1756219643566,-500.0,0.00031304,2]
[381458176,1756219643587,-500.0,0.00031304,2]
[381458177,1756219643608,-500.0,0.00031304,2]
[381458178,1756219643630,-516.98398773,0.00031304,2]
[381458179,1756219643650,-500.0,0.00031304,2]
[381458180,1756219643672,-181.146,0.00031305,28]
[381458181,1756219643695,-500.0,0.00031305,2]
[381458182,1756219643716,-398.30931834,0.00031305,2]
[381458183,1756219643739,-500.0,0.00031305,2]
[381458184,1756219643760,-500.0,0.00031305,2]
[381458185,1756219643782,-215.48316086,0.00031305,2]
[381458186,1756219683372,202.21703906,0.000199,2]
[381458241,1756219832276,-12014.973791,0.0003,2]
[381458280,1756219838174,-365.69395286,0.00029999,2]
[381458281,1756219838183,-43816.026209,0.0003,2]
[381458282,1756219838193,-199.0,0.000309,120]
[381458283,1756219838203,-1053.1327149,0.00031206,2]
[381458284,1756219838212,-283.93178008,0.00031238,2]
[381458285,1756219838222,-5060.4081051,0.00031249,2]
[381458286,1756219838230,-209.49,0.00031296,10]
[381458287,1756219838240,-327.08,0.00031296,10]
[381458288,1756219838250,-272.57,0.00031296,10]
[381458289,1756219838259,-284.51683914,0.00031305,2]
[381458290,1756219838269,-337.30616294,0.00031305,2]
[381458435,1756219841089,-162.69383706,0.00031305,2]
[381458437,1756219841099,-500.0,0.00031305,2]
[381458439,1756219841109,-500.0,0.00031305,2]
[381458441,1756219841119,-500.0,0.00031305,2]
[381458443,1756219841128,-500.0,0.00031305,2]
[381458445,1756219841138,-500.0,0.00031305,2]
[381458447,1756219841148,-341.36117074,0.00031305,2]
[381458449,1756219841158,-500.0,0.00031305,2]
[381458452,1756219841168,-500.0,0.00031305,2]
[381458454,1756219841178,-500.0,0.00031305,2]
[381458456,1756219841187,-500.0,0.00031305,2]
[381458457,1756219841197,-500.0,0.00031305,2]
[381458460,1756219841207,-200.0,0.00031305,2]
[381458462,1756219841216,-500.0,0.00031305,2]
[381458464,1756219841226,-500.0,0.00031305,2]
[381458466,1756219841235,-500.0,0.00031305,2]
[381458468,1756219841245,-500.0,0.00031305,2]
[381458469,1756219841256,-500.0,0.00031305,2]
[381458471,1756219841266,-500.0,0.00031305,2]
[381458474,1756219841278,-490.0,0.00031305,2]
[381458476,1756219841288,-3474.45663356,0.00031306,2]
[381458478,1756219841298,-169712.70940006,0.00031306,2]
[381458509,1756219841585,-8787.3216937,0.00031306,2]
[381458511,1756219841597,-4185.23866642,0.00031306,2]
[381458625,1756219843223,-118641.09747882,0.00031306,2]
[381458628,1756219843232,-1370.66813632,0.00031306,2]
[381458631,1756219843242,-50864.3478201,0.00031316,2]
[381458824,1756219852970,4826.0,0.00025204,2]
[381458825,1756219915990,5000.0,0.00027353,2]
[381458828,1756219930794,165.934563,0.00013699,2]
[381458830,1756220041740,201.47169057,0.000199,2]
[381458831,1756220041861,201.47169055,0.00024907,2]
[381458832,1756220220729,216.00367401,0.000199,2]
[381458833,1756220234904,216.00367394,0.00027053,6]
[381458834,1756220251289,-152.0,0.00028,2]
[381458835,1756220254346,-373.34874391,0.00028,2]
[381458836,1756220261287,-186.5637155,0.00028,2]
[381458837,1756220263834,-413.32624063,0.00028,2]
[381458838,1756220269428,-269.0988277,0.00028,2]
[381458839,1756220272467,-404.64186518,0.00028,2]
[381458840,1756220280490,-257.01288172,0.00028,2]
[381458841,1756220284427,-156.96,0.00028,2]
[381458842,1756220287323,-167.58387999,0.00028,2]
[381458843,1756220291760,-350.2375501,0.00028,2]
[381458844,1756220294869,-243.17039191,0.00028,2]
[381458845,1756220299664,-242.91060126,0.00028,2]
[381458846,1756220301237,-160.75679804,0.00028,2]
[381458847,1756220303354,-183.97301641,0.00028,2]
[381458848,1756220304617,317.01102498,0.000199,2]
[381458849,1756220305216,317.01102498,0.00027053,6]
[381458850,1756220305265,317.01102498,0.00023476,2]
[381458851,1756220307695,-176.80742441,0.00028,2]
[381458852,1756220309323,-460.0,0.00028,2]
[381458853,1756220311527,-165.86420085,0.00028,2]
[381458854,1756220316389,-168.29647525,0.00028,2]
[381458855,1756220319505,-277.17011412,0.00028,2]
[381458856,1756220324516,-184.29975949,0.00028,2]
[381458857,1756220327440,-442.98397012,0.00028,2]
[381458858,1756220332629,-151.0,0.00028,2]
[381458859,1756220336505,-156.96,0.00028,2]
[381458860,1756220339858,-387.58095426,0.00028,2]
[381458861,1756220341331,-170.44122971,0.00028,2]
[381458862,1756220343515,-199.0,0.00028,2]
[381458863,1756220345641,-179.41789494,0.00027999,2]
[381458864,1756220348111,-120.58210506,0.00027999,2]
[381458865,1756220348131,-298.63649048,0.00028,2]
[381458866,1756220354426,-199.0,0.00028,2]
[381458867,1756220356377,-349.72620628,0.00028,2]
[381458868,1756220361125,-182.4602205,0.00028,2]
[381458869,1756220363937,-199.0,0.00028,2]
[381458870,1756220366688,-317.28364551,0.00028,2]
[381458871,1756220373267,-187.727687,0.00028,2]
[381458872,1756220377078,-366.1065889,0.00028,2]
[381458873,1756220391225,-290.73811895,0.00028,2]
[381458874,1756220396722,-300.0,0.00028,2]
[381458875,1756220400223,-300.0,0.00028,2]
[381458876,1756220405513,-216.15220916,0.00028,2]
[381458877,1756220408186,-215.47372884,0.00027999,2]
[381458878,1756220414147,-160.0,0.00027999,2]
[381458879,1756220416316,-152.0,0.00027999,2]
[381458880,1756220420840,-207.84426583,0.00027999,2]
[381458881,1756220426700,-184.4719823,0.00027999,2]
[381458882,1756220429958,-280.21002303,0.00027999,2]
[381458883,1756220429979,-80.79378836,0.00028,2]
[381458884,1756220432200,-461.03941405,0.00028,2]
[381458885,1756220436419,-152.0,0.00028,2]
[381458886,1756220439653,-165.74,0.00028,2]
[381458887,1756220444428,-192.0,0.00028,2]
[381458888,1756220448077,-246.0,0.00028,2]
[381458889,1756220452809,-152.0,0.00028,10]
[381458890,1756220456030,-152.0,0.00028,10]
[381458891,1756220460288,-72.39720582,0.00028,10]
[381458892,1756220460313,-126.60279418,0.00028,2]
[381458893,1756220463093,-246.0,0.000279,2]
[381458894,1756220469434,-217.0,0.000279,2]
[381458895,1756220472148,512.62665171,0.000199,2]
[381458896,1756220472250,512.62665146,0.00026806,6]
[381458897,1756220477457,-188.0,0.000279,2]
[381458898,1756220481976,-199.0,0.000278,2]
[381458899,1756220483761,-216.36391022,0.000278,2]
[381458900,1756220487084,-344.44938106,0.000278,2]
[381458901,1756220489609,-18.96612277,0.000278,2]
[381458902,1756220489631,-91.32005952,0.000279,2]
[381458903,1756220489653,-151.0,0.00028,2]
[381458904,1756220489675,-38.71381771,0.00028,2]
[381458905,1756220492318,-152.0,0.00028,2]
[381458906,1756220496197,-183.47,0.00028,2]
[381458907,1756220502078,-225.71780587,0.00028,2]
[381458908,1756220505436,-215.39313076,0.00028,2]
[381458909,1756220509362,-208.64101696,0.00028,2]
[381458910,1756220511899,-188.0,0.00028,2]
[381458911,1756220514124,-229.05005952,0.00028,2]
[381458912,1756220517485,-199.0,0.00028,2]
[381458913,1756220519591,-190.92246214,0.00028,2]
[381458914,1756220523722,-207.07753786,0.00028,2]
[381458915,1756220526986,-168.94994048,0.00028,2]
[381458916,1756220528589,-199.0,0.00028,2]
[381458917,1756220532930,-199.0,0.00028,2]
[381458918,1756220535564,-199.0,0.00028,2]
[381458919,1756220537858,-155.84,0.00028,2]
[381458920,1756220540378,-510.4681779,0.00028,2]
[381458921,1756220544378,-168.71882018,0.00028,2]
[381458922,1756220564679,800.0,0.000274,7]
[381458923,1756220659119,497.14531799,0.000199,2]
[381458924,1756220659243,497.14531773,0.00023353,2]
[381458925,1756220659593,497.14531773,0.00026806,6]
[381458929,1756220828661,881.83558154,0.000199,2]
[381458930,1756220829043,881.83558132,0.0002508,2]
[381458931,1756220829533,881.83558132,0.00026806,6]
[381458932,1756220830618,-151.16803761,0.00028,2]
[381458933,1756220844001,160.0,0.00026,5]
[381458934,1756220845124,-861.18780587,0.00028333,2]
[381458935,1756220845144,-215.39313076,0.00028333,2]
[381458936,1756220845165,-208.64101696,0.00028433,2]
[381458937,1756220845192,-881.83558132,0.00028533,10]
[381458938,1756220845213,-174.5452475,0.00028748,2]
[381458939,1756220845234,-585.0,0.0002915,2]
[381458940,1756220845254,-1164.0,0.00029155,2]
[381458941,1756220845275,-300.0,0.00029155,2]
[381458942,1756220845296,-300.0,0.00029156,2]
[381458943,1756220845316,-300.0,0.00029156,2]
[381458944,1756220845336,-2671.34628626,0.00029157,2]
[381458945,1756220845359,-385.0,0.00029172,2]
[381458946,1756220845383,-668.81,0.00029248,10]
[381458947,1756220845406,-500.0,0.00029256,2]
[381458948,1756220845430,-500.0,0.00029256,2]
[381458949,1756220845451,-500.0,0.00029256,2]
[381458950,1756220845472,-500.0,0.00029256,2]
[381458951,1756220845495,-500.0,0.00029256,2]
[381458952,1756220845517,-500.0,0.00029256,2]
[381458953,1756220845540,-500.0,0.00029256,2]
[381458954,1756220845562,-500.0,0.00029256,2]
[381458955,1756220845584,-500.0,0.00029256,2]
[381458956,1756220845606,-500.0,0.00029256,2]
[381458957,1756220845628,-500.0,0.00029256,2]
[381458958,1756220845650,-337.82833682,0.00029256,2]
[381458959,1756220845673,-500.0,0.00029256,2]
[381458960,1756220845695,-280.67477328,0.00029256,2]
[381458961,1756220975197,1287.76743748,0.00027,7]
[381458962,1756220975229,17311.41690672,0.00027,7]
[381458963,1756220996147,764.263362,0.000199,2]
[381458964,1756220996205,764.26336194,0.00023353,2]
[381458965,1756220997154,165.71,0.0002508,2]
[381458966,1756220997190,598.55336194,0.0002508,2]
[381459015,1756221032553,-177.0,0.00028248,120]
[381459016,1756221032563,-303.12503921,0.000289,98]
[381459018,1756221032573,-845.07960918,0.00029,10]
[381459020,1756221032583,-845.07960918,0.00029,10]
[381459022,1756221032592,-2337.42800053,0.00029055,2]
[381459024,1756221032602,-300.0,0.00029145,2]
[381459026,1756221032612,-5028.34018032,0.00029146,2]
[381459028,1756221032621,-500.0,0.00029155,2]
[381459030,1756221032630,-309.79377635,0.00029155,2]
[381459032,1756221032640,-500.0,0.00029155,2]
[381459034,1756221032649,-500.0,0.00029155,2]
[381459036,1756221032659,-500.0,0.00029155,2]
[381459038,1756221032668,-500.0,0.00029155,2]
[381459040,1756221032678,-171.78693926,0.00029155,2]
[381459043,1756221032687,-500.0,0.00029155,2]
[381459045,1756221032696,-500.0,0.00029155,2]
[381459047,1756221032705,-500.0,0.00029155,2]
[381459049,1756221032714,-500.0,0.00029155,2]
[381459050,1756221032724,-500.0,0.00029155,2]
[381459053,1756221032734,-500.0,0.00029155,2]
[381459055,1756221032744,-312.20575805,0.00029155,2]
[381459057,1756221032754,-437.21822173,0.00029155,2]
[381459059,1756221032763,-500.0,0.00029155,2]
[381459061,1756221032772,-457.22060381,0.00029155,2]
[381459063,1756221032782,-500.0,0.00029155,2]
[381459064,1756221032791,-500.0,0.00029155,2]
[381459066,1756221032801,-500.0,0.00029155,2]
[381459068,1756221032810,-215.51174181,0.00029155,2]
[381459070,1756221032819,-500.0,0.00029155,2]
[381459073,1756221032830,-623.30529162,0.00029155,2]
[381459074,1756221032839,-500.0,0.00029155,2]
[381459076,1756221032848,-500.0,0.00029155,2]
[381459078,1756221032857,-500.0,0.00029155,2]
[381459081,1756221032867,-500.0,0.00029155,2]
[381459082,1756221032877,-500.0,0.00029155,2]
[381459085,1756221032886,-500.0,0.00029155,2]
[381459087,1756221032895,-500.0,0.00029155,2]
[381459089,1756221032905,-500.0,0.00029155,2]
[381459091,1756221032915,-500.0,0.00029155,2]
[381459093,1756221032926,-500.0,0.00029155,2]
[381459095,1756221032935,-613.41197841,0.00029155,2]
[381459097,1756221032944,-500.0,0.00029155,2]
[381459099,1756221032953,-335.19503711,0.00029155,2]
[381459154,1756221033441,-164.80496289,0.00029155,2]
[381459156,1756221033451,-421.63056905,0.00029155,2]
[381459158,1756221033462,-500.0,0.00029155,2]
[381459160,1756221033471,-500.0,0.00029155,2]
[381459162,1756221033481,-117.37137681,0.00029155,2]
[381459247,1756221038408,-199.0,0.00028148,120]
[381459248,1756221038419,-3776.29171562,0.00029236,2]
[381459249,1756221038503,-5185.3666975,0.00029236,2]
[381459250,1756221038515,-359.1962722,0.00029236,2]
[381459251,1756221038526,-860.79503298,0.00029236,2]
[381459252,1756221038536,-173.33237599,0.00029245,2]
[381459253,1756221038546,-500.0,0.00029245,2]